bitfinex-derivatives/quotes_ETHF0:USTF0_20210102
["timestamp","ask_amount","ask_price","bid_price","bid_amount"]
[1609619765397,0.03900831,769.19,768.91,6.01438]
[1609619765597,0.03900831,769.19,769.18,6.01438]
[1609619766300,3.906,769.21,768.76,3.716]
[1609619766500,0.03902239,769.23,768.76,3.716]
[1609619767699,0.03902239,769.23,769.18,6.01438]
[1609619768099,6.79707866,769.25,769.18,6.01438]
[1609619768901,0.78269866,769.25,769.18,6.01438]
[1609619769201,0.78250172,769.23,769.18,6.01438]
[1609619769401,5.69450172,769.23,769.18,6.01438]
[1609619770000,5.69450172,769.23,768.76,3.716]
[1609619770403,4.912,769.23,768.66,0.6]
[1609619770802,15.0,769.22,768.66,0.6]
[1609619771802,15.0,769.22,769.05,6.01438]
[1609619772002,15.0,769.22,768.66,0.6]
[1609619772402,0.0391225,769.1,768.66,0.6]
[1609619773203,0.78245007,769.18,768.66,0.6]
[1609619773804,0.78245007,769.18,768.78,6.01438]
[1609619774405,16.25192011,769.22,768.78,6.01438]
[1609619774406,0.03920568,768.96,768.78,6.01438]
[1609619774605,4.76420568,768.96,768.66,0.6]
[1609619774808,15.0,768.95,768.66,0.6]
[1609619775408,4.76420568,768.96,768.66,0.6]
[1609619775614,0.03916559,768.81,768.66,0.6]
[1609619775809,0.03916559,768.81,768.8,6.01438]
[1609619777209,15.0,768.95,768.8,6.01438]
[1609619777210,0.039171,768.83,768.8,6.01438]
[1609619778109,0.039171,768.83,768.66,0.6]
[1609619779413,0.039171,768.83,768.42,4.086]
[1609619779613,0.039171,768.83,768.14,17.6348624]
[1609619779812,6.01438,768.49,768.36,6.01438]
[1609619783716,6.01438,768.37,768.36,6.01438]
[1609619784618,6.01438,768.37,767.97,107.0812]
[1609619784818,6.01438,768.37,767.94,17.63800056]
[1609619785822,6.01438,768.22,768.0,6.01438]
[1609619787823,6.01438,768.22,768.13,6.01438]
[1609619788022,6.01438,768.22,768.13,10.09138]
[1609619788225,6.01438,768.22,768.13,4.077]
[1609619788822,87.3338,768.41,768.13,4.077]
[1609619789822,6.01438,768.34,768.13,4.077]
[1609619793024,6.01438,768.34,768.12,6.01438]
[1609619794226,87.37291707,768.41,768.12,6.01438]
[1609619794427,0.03911707,768.41,768.12,6.01438]
[1609619794626,0.03911707,768.41,768.12,10.02938]
[1609619794828,0.03910568,768.4,768.12,10.02938]
[1609619795928,0.03916288,768.64,768.39,6.01438]
[1609619797833,0.03916288,768.64,768.63,6.01438]
[1609619798033,0.03916288,768.64,768.63,10.41638]
[1609619800040,0.03901409,768.7,768.63,10.41638]
[1609619800942,0.03895365,768.99,768.63,10.41638]
[1609619801946,0.77886747,769.05,768.98,6.01438]
[1609619802143,0.77886747,769.05,768.63,4.402]
[1609619802943,0.77886747,769.05,768.38,3.973]
[1609619803143,15.0,769.06,768.21,17.63391111]
[1609619803144,0.03893937,768.89,768.21,17.63391111]
[1609619803342,15.0,768.88,768.21,17.63391111]
[1609619803846,15.0,768.88,768.65,6.01438]
[1609619804246,3.41993937,768.89,768.65,6.01438]
[1609619804447,0.77700579,768.74,768.65,6.01438]
[1609619804846,0.77700579,768.74,768.43,3.168]
[1609619805248,0.77520332,768.72,768.43,3.168]
[1609619805848,6.01438,768.51,768.43,3.168]
[1609619807847,0.03874104,768.5,768.43,3.168]
[1609619808348,0.03874104,768.5,768.35,6.01438]
[1609619808951,0.03874104,768.5,767.86,75.6683]
[1609619809351,15.03874104,768.5,767.86,75.6683]
[1609619809550,91.7991,768.48,767.82,17.63806914]
[1609619809752,15.0,768.47,767.82,17.63806914]
[1609619809952,6.01438,768.18,768.11,6.01438]
[1609619810152,14.9601,768.17,768.11,6.01438]
[1609619810953,15.0,768.16,768.11,6.01438]
[1609619811156,90.1156,768.12,768.11,6.01438]
[1609619811353,105.1156,768.12,767.54,17.64363223]
[1609619811954,6.01438,767.94,767.87,6.01438]
[1609619813355,4.73558753,768.22,767.87,6.01438]
[1609619813557,0.03871604,768.07,767.87,6.01438]
[1609619814358,6.01438,768.09,767.87,6.01438]
[1609619815962,6.01438,767.94,767.87,6.01438]
[1609619816662,0.03876812,768.13,767.87,6.01438]
[1609619817061,0.03891702,768.08,767.87,6.01438]
[1609619818062,0.03883545,768.12,767.87,6.01438]
[1609619819966,6.01438,768.02,767.87,6.01438]
[1609619820866,0.03883545,768.12,767.87,6.01438]
[1609619823571,6.01438,768.16,767.87,6.01438]
[1609619823572,0.03883667,768.15,767.87,6.01438]
[1609619823970,0.03883667,768.15,767.95,6.01438]
[1609619824170,0.03883667,768.15,767.95,10.59838]
[1609619824572,0.03862867,768.29,767.95,10.59838]
[1609619824771,0.03862867,768.29,767.96,15.0]
[1609619825675,0.03866149,768.44,767.96,15.0]
[1609619825872,0.03866149,768.44,768.43,6.01438]
[1609619826073,0.03866149,768.44,768.43,21.01438]
[1609619826880,0.0386901,768.59,768.43,6.01438]
[1609619827678,0.0386901,768.59,768.44,15.0]
[1609619827878,0.0386901,768.59,768.58,6.01438]
[1609619828279,0.6,768.89,768.58,6.01438]
[1609619828280,0.03850884,768.75,768.58,6.01438]
[1609619829079,0.6,768.89,768.58,6.01438]
[1609619830679,0.03854731,768.88,768.58,6.01438]
[1609619831082,0.6,768.82,768.58,6.01438]
[1609619831681,0.6,768.82,768.44,4.738]
[1609619831883,6.01438,768.62,768.47,6.01438]
[1609619832782,0.03848308,768.75,768.44,4.738]
[1609619833183,0.03851496,768.62,768.3,89.3741]
[1609619833884,0.03851496,768.62,768.59,6.01438]
[1609619834086,0.03850665,768.6,768.59,6.01438]
[1609619834385,0.03850665,768.6,768.3,89.3741]
[1609619835287,0.03850349,768.65,768.3,89.3741]
[1609619835885,0.03850349,768.65,768.64,6.01438]
[1609619836186,0.0383632,768.68,768.64,6.01438]
[1609619836787,0.03837266,768.71,768.64,6.01438]
[1609619837489,0.76715678,768.8,768.3,89.3741]
[1609619837693,0.76715678,768.8,768.28,3.548]
[1609619837893,6.01438,768.69,768.31,6.01438]
[1609619838094,0.03831371,768.62,768.31,6.01438]
[1609619839095,0.03831371,768.62,767.91,17.63620442]
[1609619839295,15.0,768.68,767.79,4.33]
[1609619839296,0.0382878,768.48,767.79,4.33]
[1609619839495,11.6204,768.47,767.79,4.33]
[1609619839696,15.0,768.46,767.77,17.64106125]
[1609619839897,6.01438,768.17,767.88,6.01438]
[1609619841900,6.01438,768.17,767.97,6.01438]
[1609619842098,0.03825551,768.16,767.97,10.68438]
[1609619845503,15.03825551,768.16,767.97,10.68438]
[1609619845703,15.03825551,768.16,767.97,4.67]
[1609619845905,95.5135,767.98,767.46,17.64786448]
[1609619846103,6.01438,767.98,767.87,6.01438]
[1609619846303,4.722,768.01,767.87,6.01438]
[1609619846503,90.5003,767.98,767.87,6.01438]
[1609619848106,6.01438,767.92,767.87,6.01438]
[1609619848308,78.7394,767.88,767.87,6.01438]
[1609619849807,78.7394,767.88,767.51,4.512]
[1609619850009,6.01438,767.79,767.51,4.512]
[1609619850208,105.6636,767.65,767.51,4.512]
[1609619850819,6.01438,767.79,767.51,4.512]
[1609619851209,97.3802,767.55,767.51,4.512]
[1609619851410,97.3802,767.55,767.12,15.0]
[1609619851609,86.5405,767.26,767.12,15.0]
[1609619852010,86.5405,767.26,767.25,6.01438]
[1609619852209,86.5405,767.26,767.25,10.91038]
[1609619852812,89.1622,767.26,767.25,10.91038]
[1609619853011,2.6217,767.26,767.25,10.91038]
[1609619853221,6.01438,767.37,767.25,10.91038]
[1609619853412,0.0381917,767.61,767.25,10.91038]
[1609619854011,6.01438,767.5,767.48,6.01438]
[1609619854215,6.01438,767.5,767.25,4.896]
[1609619854612,0.03813588,767.46,767.26,15.0]
[1609619855412,0.03812384,767.59,767.26,15.0]
[1609619856012,0.03812384,767.59,767.58,6.01438]
[1609619856213,0.03812384,767.59,767.58,21.01438]
[1609619857214,0.03812384,767.59,767.58,6.01438]
[1609619857415,0.6,767.67,767.58,6.01438]
[1609619857614,0.6,767.67,767.58,21.01438]
[1609619858015,0.6,767.67,767.66,6.01438]
[1609619859321,0.6,767.67,767.66,21.01438]
[1609619860120,0.03822534,767.95,767.66,21.01438]
[1609619860520,0.03822534,767.95,767.66,25.31038]
[1609619860721,0.0382379,768.03,767.66,25.31038]
[1609619861121,0.0382379,768.03,767.67,15.0]
[1609619861921,0.03828653,768.22,767.67,15.0]
[1609619862133,0.03828653,768.22,768.21,6.01438]
[1609619862721,0.03828653,768.22,768.21,21.01438]
[1609619862921,0.03829128,768.26,768.21,21.01438]
[1609619863921,0.76582554,768.38,768.21,21.01438]
[1609619864122,0.76582554,768.38,768.37,6.01438]
[1609619864322,0.76582554,768.38,768.37,21.01438]
[1609619864522,109.34338,769.14,768.37,21.01438]
[1609619864523,0.76752772,768.54,768.37,21.01438]
[1609619865323,0.76752772,768.54,768.37,6.01438]
[1609619865723,0.76843698,768.7,768.37,6.01438]
[1609619866122,0.76843698,768.7,768.59,6.01438]
[1609619867222,0.76803999,768.62,768.59,6.01438]
[1609619869127,1.22583719,768.63,768.59,6.01438]
[1609619870528,1.83699514,768.65,768.59,6.01438]
[1609619871028,1.83699514,768.65,768.59,21.01438]
[1609619871729,0.76572849,768.81,768.59,21.01438]
[1609619872131,0.76572849,768.81,768.8,6.01438]
[1609619874539,0.76507738,768.91,768.8,6.01438]
[1609619875435,0.76507738,768.91,768.27,105.2267]
[1609619875436,0.76501232,768.95,768.27,105.2267]
[1609619875636,0.76501232,768.95,767.94,15.0]
[1609619875836,0.76501232,768.95,768.27,3.877]
[1609619876035,6.01438,768.93,768.6,6.01438]
[1609619876435,0.76435617,768.77,768.6,6.01438]
[1609619876636,0.76435617,768.77,768.27,3.877]
[1609619878138,0.76462683,768.62,768.59,6.01438]
[1609619878337,0.76462683,768.62,768.27,3.877]
[1609619878739,0.76396844,768.48,768.27,3.877]
[1609619879945,0.76400756,768.47,768.27,3.877]
[1609619880145,6.01438,768.33,768.27,3.877]
[1609619880745,0.76229623,768.28,768.27,3.877]
[1609619880945,0.76229623,768.28,767.96,6.01438]
[1609619882048,6.01438,768.33,767.96,6.01438]
[1609619882049,0.76213307,768.31,767.96,6.01438]
[1609619882249,0.76213307,768.31,767.96,9.78838]
[1609619883450,0.76216366,768.38,767.96,9.78838]
[1609619884250,6.01438,768.18,767.96,9.78838]
[1609619886052,6.01438,768.18,767.96,3.774]
[1609619886251,6.01438,768.07,767.96,3.774]
[1609619886652,15.0,768.06,767.96,3.774]
[1609619887454,6.01438,768.07,767.39,17.65255389]
[1609619888155,6.01438,767.98,767.62,6.01438]
[1609619888553,15.0,767.97,767.62,6.01438]
[1609619888753,15.0,767.97,767.39,17.65255389]
[1609619889554,6.01438,767.98,767.39,17.65255389]
[1609619890155,6.01438,767.7,767.42,6.01438]
[1609619890355,4.862,768.11,767.42,6.01438]
[1609619890555,4.862,768.11,767.42,9.68438]
[1609619890756,82.1309,768.13,767.42,9.68438]
[1609619890757,0.7591709,768.0,767.42,9.68438]
[1609619891155,0.7591709,768.0,767.42,3.67]
[1609619891757,15.0,768.12,767.42,3.67]
[1609619892156,6.01438,767.68,767.42,3.67]
[1609619893258,0.75889239,768.13,767.42,3.67]
[1609619894062,0.75846751,768.07,767.42,3.67]
[1609619894261,6.01438,767.85,767.63,6.01438]
[1609619894661,6.01438,767.85,767.42,3.67]
[1609619895663,6.01438,767.85,767.19,17.66164114]
[1609619896064,6.01438,767.64,767.48,6.01438]
[1609619896265,6.01438,767.64,767.19,17.66164114]
[1609619896464,0.75821669,768.1,767.19,17.66164114]
[1609619896664,0.7573369,767.97,767.19,4.201]
[1609619898166,6.01438,767.58,767.39,6.01438]
[1609619898564,0.75735148,767.91,767.39,6.01438]
[1609619898964,0.75735148,767.91,767.39,10.03738]
[1609619899365,0.75754298,767.94,767.39,10.03738]
[1609619900166,6.01438,767.58,767.39,10.03738]
[1609619900568,0.75754298,767.94,767.39,10.03738]
[1609619901668,0.75666363,767.89,767.39,10.03738]
[1609619902168,6.01438,767.61,767.39,10.03738]
[1609619906272,6.01438,767.51,767.39,10.03738]
[1609619906673,1.80973185,767.97,767.39,10.03738]
[1609619906674,0.75388778,767.81,767.39,10.03738]
[1609619907873,0.75416417,767.86,767.39,10.03738]
[1609619908273,6.01438,767.85,767.52,6.01438]
[1609619908873,0.75416417,767.86,767.52,6.01438]
[1609619909072,0.75416417,767.86,767.53,15.0]
[1609619909473,0.75403126,767.88,767.53,15.0]
[1609619910273,0.75403126,767.88,767.87,6.01438]
[1609619910474,0.75500187,768.16,767.87,6.01438]
[1609619911075,7.22238299,768.2,767.87,6.01438]
[1609619911076,6.01438,768.2,767.87,6.01438]
[1609619912175,6.01438,767.98,767.73,6.01438]
[1609619914277,6.01438,767.74,767.55,6.01438]
[1609619914684,6.01438,767.74,767.45,0.2097]
[1609619918282,6.01438,767.46,767.45,0.2097]
[1609619919382,8.58118,767.46,767.45,0.2097]
[1609619921586,23.58118,767.46,766.47,15.0]
[1609619921784,15.0,767.44,766.16,15.0]
[1609619922186,6.01438,766.83,766.77,6.01438]
[1609619922383,6.01438,766.83,766.17,15.0]
[1609619923186,6.01438,766.83,766.1,15.0]
[1609619923386,6.01438,766.83,766.08,27.34659391]
[1609619923588,6.01438,766.83,766.09,15.0]
[1609619923785,2.6094,766.82,766.09,15.0]
[1609619923985,6.01438,766.83,766.09,15.0]
[1609619924185,6.01438,766.83,766.68,6.01438]
[1609619924385,0.1501784,767.21,766.68,6.01438]
[1609619924587,0.15015808,767.22,766.68,6.01438]
[1609619924786,0.15015808,767.22,766.68,10.53538]
[1609619925186,0.15015808,767.22,766.69,15.0]
[1609619925388,0.15012477,767.23,766.69,15.0]
[1609619925588,0.15012477,767.23,766.68,10.53538]
[1609619926192,6.01438,767.19,766.78,6.01438]
[1609619927991,6.01438,767.19,766.68,4.521]
[1609619928191,6.01438,767.02,766.77,6.01438]
[1609619928591,0.15027618,767.35,766.77,6.01438]
[1609619929392,0.15022992,767.29,766.77,6.01438]
[1609619930191,6.01438,767.2,767.06,6.01438]
[1609619933001,0.15021273,767.24,767.06,6.01438]
[1609619933399,0.15034245,767.32,767.06,6.01438]
[1609619934298,0.15034245,767.32,767.3,6.01438]
[1609619935300,0.75167661,767.37,767.3,6.01438]
[1609619935701,0.75167661,767.37,766.68,4.521]
[1609619935901,0.75167661,767.37,765.41,15.0]
[1609619936101,0.75167661,767.37,766.04,15.0]
[1609619936301,6.01438,767.11,766.75,6.01438]
[1609619936704,0.75167661,767.37,766.75,6.01438]
[1609619936901,0.75167661,767.37,766.75,9.51538]
[1609619937503,0.15009812,767.23,766.75,9.51538]
[1609619937904,0.15009812,767.23,766.75,24.51538]
[1609619938304,0.15009812,767.23,767.22,6.01438]
[1609619938905,2.40156985,767.49,767.22,6.01438]
[1609619938906,0.15101174,767.29,767.22,6.01438]
[1609619939706,0.1514402,767.39,767.22,6.01438]
[1609619939908,0.1514402,767.39,766.75,3.501]
[1609619940309,6.01438,767.39,766.86,6.01438]
[1609619941909,0.15195743,767.28,766.87,15.0]
[1609619942308,0.15195743,767.28,767.27,6.01438]
[1609619942513,0.15195743,767.28,767.27,9.78738]
[1609619944211,0.15253124,767.37,767.27,9.78738]
[1609619945514,0.15301806,767.43,767.27,9.78738]
[1609619946312,0.15301806,767.43,767.42,6.01438]
[1609619947615,0.15442747,767.77,767.42,6.01438]
[1609619948415,0.15442747,767.77,767.76,6.01438]
[1609619948615,0.15487368,767.98,767.76,6.01438]
[1609619948817,0.15487368,767.98,767.79,95.1308]
[1609619949215,0.15487368,767.98,767.79,99.1958]
[1609619949818,0.1551437,768.06,767.79,99.1958]
[1609619950322,0.1551437,768.06,768.05,6.01438]
[1609619951123,0.15549817,768.16,768.05,6.21188]
[1609619951623,1.24398538,768.27,768.05,6.21188]
[1609619952422,1.24398538,768.27,768.26,6.01438]
[1609619953223,3.10095309,768.65,768.26,6.01438]
[1609619953224,0.15504765,768.3,768.26,6.01438]
[1609619954628,0.15487532,768.36,768.26,6.01438]
[1609619955325,0.15487532,768.36,768.05,0.1975]
[1609619955527,0.15466904,768.32,768.05,0.1975]
[1609619956329,15.0,768.58,768.05,0.1975]
[1609619956330,6.01438,768.06,768.05,0.1975]
[1609619956531,21.01438,768.06,768.05,0.1975]
[1609619958232,6.01438,768.06,768.05,0.1975]
[1609619958837,6.16826047,768.06,768.05,0.1975]
[1609619959033,21.16826047,768.06,768.05,0.1975]
[1609619959635,25.91446817,768.06,768.05,0.1975]
[1609619959833,25.91446817,768.06,767.79,4.065]
[1609619960034,25.91446817,768.06,767.28,6.01438]
[1609619960435,6.01438,767.37,767.28,6.01438]
[1609619961434,6.01438,767.37,766.64,84.5048]
[1609619961635,21.01438,767.37,744.24,0.12017906]
[1609619961834,6.01438,767.37,766.04,83.4257]
[1609619962236,21.01438,767.37,766.04,83.4257]
[1609619962436,6.01438,767.11,767.0,6.01438]
[1609619962635,6.01438,767.11,766.05,15.0]
[1609619962836,0.15339152,767.53,766.06,15.0]
[1609619963035,0.15339152,767.53,766.13,89.8175]
[1609619963240,0.15339152,767.53,766.14,15.0]
[1609619963436,0.15267891,767.36,766.14,15.0]
[1609619963636,0.15267891,767.36,766.25,85.6418]
[1609619963838,0.15267891,767.36,766.26,15.0]
[1609619964438,6.01438,767.35,766.26,15.0]
[1609619966141,0.1525684,767.4,766.26,15.0]
[1609619966342,0.1525684,767.4,767.03,6.01438]
[1609619967345,0.15258272,767.41,767.03,6.01438]
[1609619967743,0.15258272,767.41,766.51,86.0842]
[1609619967943,0.15258272,767.41,766.52,15.0]
[1609619968342,6.01438,767.35,766.99,6.01438]
[1609619968543,6.01438,767.35,767.0,15.0]
[1609619968744,0.15227373,767.36,767.0,15.0]
[1609619970144,0.15248063,767.44,767.0,15.0]
[1609619970345,0.15248063,767.44,767.43,6.01438]
[1609619970544,0.15248063,767.44,767.01,15.0]
[1609619971245,6.01438,767.53,767.01,15.0]
[1609619971644,6.01438,767.53,766.51,86.0842]
[1609619971645,6.01438,767.53,766.75,15.0]
[1609619971845,6.01438,767.53,766.51,86.0842]
[1609619972046,21.01438,767.53,766.51,86.0842]
[1609619972246,6.01438,767.53,766.51,86.0842]
[1609619972448,0.15248357,767.62,766.89,6.01438]
[1609619972846,0.15242861,767.61,766.25,4.586]
[1609619973048,0.15242861,767.61,766.01,80.5033]
[1609619973447,0.15220282,767.39,766.01,80.5033]
[1609619973647,0.15220282,767.39,766.01,95.5033]
[1609619974448,6.01438,766.72,766.68,6.01438]
[1609619974648,0.15173728,767.12,765.26,15.0]
[1609619974849,0.15173728,767.12,765.33,83.5454]
[1609619975248,15.15173728,767.12,765.34,15.0]
[1609619975848,2.6381,767.11,765.34,15.0]
[1609619976049,15.0,767.1,765.33,83.5454]
[1609619976249,15.0,767.1,765.34,15.0]
[1609619976457,6.01438,766.3,766.23,6.01438]
[1609619976655,6.01438,766.3,765.33,83.5454]
[1609619976856,15.0,766.29,765.26,4.632]
[1609619977057,6.01438,766.3,765.26,4.632]
[1609619977256,6.01438,766.3,765.34,15.0]
[1609619978257,6.01438,766.3,765.26,4.632]
[1609619978456,6.01438,766.16,766.05,6.01438]
[1609619978657,0.15146965,766.75,766.05,6.01438]
[1609619978858,0.15146965,766.75,766.05,10.01938]
[1609619979056,0.15100708,766.69,766.05,25.01938]
[1609619979858,0.15100708,766.69,766.05,10.01938]
[1609619980359,0.15100708,766.69,766.06,15.0]
[1609619980560,6.01438,766.61,766.37,6.01438]
[1609619981360,6.01438,766.61,766.05,4.005]
[1609619982060,0.07553394,766.9,766.05,4.005]
[1609619982262,0.07560217,766.83,766.06,15.0]
[1609619982461,0.07560217,766.83,766.82,6.01438]
[1609619983060,0.07560217,766.83,766.82,21.01438]
[1609619983461,0.07560217,766.83,766.82,6.01438]
[1609619983864,0.07578664,767.07,766.82,6.01438]
[1609619984463,0.07578664,767.07,767.06,6.01438]
[1609619984966,0.07578664,767.07,766.24,75.1351]
[1609619985167,0.07579609,767.13,766.24,75.1351]
[1609619985566,0.07579609,767.13,766.25,15.0]
[1609619986366,0.07569292,767.12,766.25,15.0]
[1609619986567,0.07569292,767.12,766.71,6.01438]
[1609619987466,15.07569292,767.12,766.06,15.0]
[1609619987667,0.07558135,766.99,766.05,4.005]
[1609619987868,0.07558135,766.99,765.63,15.0]
[1609619988466,6.01438,766.41,766.1,6.01438]
[1609619989067,0.07540804,766.79,766.11,15.0]
[1609619989269,0.07540804,766.79,766.11,18.24]
[1609619989469,0.07540804,766.79,766.11,3.24]
[1609619990072,0.0752551,766.82,766.11,3.24]
[1609619990475,6.01438,766.44,766.27,6.01438]
[1609619990872,0.07532872,766.7,766.11,3.24]
[1609619992477,6.01438,766.26,766.11,3.24]
[1609619993774,0.07535915,766.68,766.11,3.24]
[1609619993977,0.07520455,766.37,766.11,3.24]
[1609619994377,0.07520455,766.37,765.68,15.0]
[1609619994577,0.07520455,766.37,766.01,6.01438]
[1609619994777,0.07520455,766.37,766.01,25.22338]
[1609619995177,0.07510618,766.38,766.01,25.22338]
[1609619995877,0.07510618,766.38,766.01,10.22338]
[1609619996477,0.07510618,766.38,766.37,6.01438]
[1609619996677,0.07523374,766.64,766.37,6.01438]
[1609619997286,0.07528527,766.76,766.37,6.01438]
[1609619997885,0.07528527,766.76,766.37,21.01438]
[1609619998487,0.07528527,766.76,766.75,6.01438]
[1609619998686,0.15048321,766.78,766.75,6.01438]
[1609619999988,0.07520675,766.92,766.75,6.01438]
[1609620001187,0.07513881,766.84,766.75,6.01438]
[1609620002390,0.22547931,766.82,766.75,6.01438]
[1609620003596,0.07515977,766.82,766.75,6.01438]
[1609620003794,0.15009108,766.84,766.75,6.01438]
[1609620004192,0.15009108,766.84,766.01,4.209]
[1609620004392,0.15009108,766.84,766.0,15.0]
[1609620004593,6.01438,766.56,765.73,99.4121]
[1609620004792,6.01438,766.56,765.26,4.632]
[1609620004993,6.01438,766.56,764.88,87.2573]
[1609620005193,6.01438,766.56,765.26,15.0]
[1609620005596,21.01438,766.56,765.26,18.179]
[1609620005793,21.01438,766.56,765.26,3.179]
[1609620005994,0.07508869,766.53,765.26,3.179]
[1609620006597,6.01438,765.86,765.26,3.179]
[1609620007797,0.07486417,766.27,765.26,3.179]
[1609620007998,2.6186,766.26,765.26,3.179]
[1609620008196,0.07486417,766.27,765.26,3.179]
[1609620008397,0.07473595,766.13,765.26,3.179]
[1609620008597,6.01438,766.09,765.85,6.01438]
[1609620008800,6.01438,766.09,765.26,3.179]
[1609620008999,6.01438,766.09,765.26,2.7805]
[1609620009403,15.0,766.08,765.26,2.7805]
[1609620009603,6.01438,766.09,765.26,2.7805]
[1609620009803,15.0,766.08,765.26,2.7805]
[1609620010001,6.01438,766.09,765.26,2.7805]
[1609620010201,0.07474365,766.0,765.26,2.7805]
[1609620010599,6.01438,765.4,765.34,6.01438]
[1609620011402,0.07457827,765.65,765.34,6.01438]
[1609620012002,0.07457827,765.65,765.34,10.01238]
[1609620012204,0.07455424,765.5,765.34,10.01238]
[1609620012603,6.01438,765.37,765.34,10.01238]
[1609620013105,0.07455424,765.5,765.34,10.01238]
[1609620014705,6.01438,765.41,765.34,10.01238]
[1609620015605,0.07455424,765.5,765.34,10.01238]
[1609620015906,0.07466834,765.4,765.34,10.01238]
[1609620016306,0.07466834,765.4,765.34,3.998]
[1609620016708,6.01438,765.35,765.34,3.998]
[1609620017109,6.01438,765.35,765.02,6.01438]
[1609620017306,0.0747887,765.52,765.02,6.01438]
[1609620017509,0.0747887,765.52,765.25,5.14929469]
[1609620017708,0.07470796,765.37,765.25,5.14929469]
[1609620018710,6.01438,765.31,765.25,5.14929469]
[1609620019113,2.624,765.3,765.25,5.14929469]
[1609620019311,0.07470796,765.37,765.25,5.14929469]
[1609620019711,0.07466752,765.36,765.25,5.14929469]
[1609620020713,0.07466752,765.36,765.35,6.01438]
[1609620020913,2.5945,765.36,765.35,6.01438]
[1609620021631,13.00825944,766.38,765.35,6.01438]
[1609620022720,13.00825944,766.38,765.25,5.14929469]
[1609620022721,19.02111616,765.98,765.66,6.01438]
[1609620023431,13.00673616,765.98,765.66,6.01438]
[1609620025824,13.00673616,765.98,765.66,9.89838]
[1609620026926,2.6195,765.91,765.66,9.89838]
[1609620027126,13.00673616,765.98,765.66,9.89838]
[1609620028931,2.39108998,765.8,765.66,9.89838]
[1609620029731,2.39108998,765.8,765.66,10.49838]
[1609620030133,2.6377,766.15,765.66,10.49838]
[1609620030333,2.41082775,766.57,765.66,10.49838]
[1609620030732,2.41082775,766.57,766.5,6.01438]
[1609620030933,2.6298,766.56,766.5,6.01438]
[1609620031134,4.87473762,766.58,766.5,6.01438]
[1609620031333,4.87473762,766.58,765.66,4.484]
[1609620031636,4.87473762,766.58,765.82,107.9583]
[1609620032035,2.6416,766.57,765.82,107.9583]
[1609620032238,4.87473762,766.58,765.82,107.9583]
[1609620032436,4.87581236,766.56,765.82,107.9583]
[1609620032637,4.87581236,766.56,766.55,6.01438]
[1609620033136,7.51941236,766.56,766.55,6.01438]
[1609620033537,4.87581236,766.56,766.55,6.01438]
[1609620033740,4.87404034,766.72,766.55,6.01438]
[1609620033940,4.87404034,766.72,766.55,9.87838]
[1609620034641,4.87404034,766.72,766.71,6.01438]
[1609620036241,4.029,766.73,766.71,6.01438]
[1609620036843,2.6207,766.72,766.71,6.01438]
[1609620037444,4.029,766.73,766.71,6.01438]
[1609620038446,2.5751,766.72,766.71,6.01438]
[1609620038646,4.029,766.73,766.71,6.01438]
[1609620039446,4.029,766.73,766.55,3.864]
[1609620039648,4.029,766.73,765.82,107.9583]
[1609620040048,4.029,766.73,765.66,4.484]
[1609620040649,2.6006,766.72,766.57,6.01438]
[1609620041048,2.6006,766.72,765.66,4.484]
[1609620041448,7.47471227,766.72,765.66,4.484]
[1609620041752,4.87411227,766.72,765.66,4.484]
[1609620042248,6.01438,766.78,765.66,4.484]
[1609620042249,4.87325293,766.71,765.66,4.484]
[1609620042650,4.87325293,766.71,766.4,6.01438]
[1609620042850,7.45955293,766.71,766.4,9.12238]
[1609620043051,4.87325293,766.71,766.4,9.12238]
[1609620044653,4.87325293,766.71,766.7,6.01438]